[Event "CZE-ch U14 2020"]
[Site "Kouty nad Desnou"]
[Date "2020.03.12"]
[Round "7.9"]
[White "Stocek, Martin"]
[Black "Mrazek, Roman"]
[Result "1/2-1/2"]
[ECO "D45"]
[WhiteElo "1772"]
[BlackElo "1839"]
[Annotator "NA"]
[PlyCount "60"]
[EventDate "2020.03.07"]
[EventCountry "CZE"]
[SourceTitle "playchess.com"]
[Source "ChessBase"]
[SourceQuality "1"]
[TimeControl "5400+30"]

{[%evp 19,57,-64,-22,-66,-30,-93,-91,-104,-63,-122,-42,-107,-90,-92,-122,-229,-258,-847,-886,-822,-883,-907,-877,-942,-773,-699,-496,-433,-118,-181,-118,-127,-114,-126,-74,-102,-105,-112,-92,-108]} 1. d4 {[%emt 0:00:00]} d5 {[%emt 0:00:00]} 2. c4 {[%emt 0:00:00]} c6 {[%emt 0:00:00]} 3. e3 {[%emt 0:01:18]} Nf6 {[%emt 0:00:00]} 4. Nc3 {[%emt 0:00:25]} e6 {[%emt 0:00:51]} 5. Nf3 {[%emt 0:00:11]} Nbd7 {[%emt 0:00:54]} 6. cxd5 exd5 {[%emt 0:00:22]} 7. Bd3 {[%emt 0:02:05]} Bd6 {[%emt 0:00:45]} 8. O-O {[%emt 0:00:48]} O-O {[%emt 0:00:55]} 9. Bd2 {[%emt 0:01:38]} Re8 {[%emt 0:00:41]} 10. Qc2 {[%emt 0:08:10]} Nf8 {[%emt 0:05:36] [#]} 11. Rfb1 $146 {[%emt 0:12:16] D45: Semi-Slav: 5 e3.} ({Predecessor:} 11. e4 Nxe4 12. Nxe4 dxe4 13. Bxe4 {½-½ (13) Tsyhanchuk,S (2285)-Odnorozhenko,E (2317) Yakutsk 2012}) 11... Qe7 {[%emt 0:01:45]} 12. Na4 {[%emt 0:08:02]} (12. h3 $11) 12... Ne4 {[%emt 0:03:51]} 13. Be1 {[%emt 0:13:07]} Ng6 {[%emt 0:08:04]} 14. b4 {[%emt 0:08:49]} Nh4 {[%emt 0:01:34]} (14... Bg4 $17 15. Nd2 Nh4) 15. Nxh4 {[%emt 0:02:41]} (15. Bxe4 $15 dxe4 16. Nxh4 Qxh4 17. f4) 15... Qxh4 {[%emt 0:03:21]} 16. g3 {[%emt 0:00:58]} Qh6 {[%emt 0:01:06]} 17. b5 {[%emt 0:04:32]} (17. Bf1 $17) 17... Ng5 {[%emt 0:08:32]} 18. h4 $2 (18. Be2 Nh3+ 19. Kh1) 18... Nf3+ {[%emt 0:05:58]} 19. Kg2 {[%emt 0:30:05] [#]} Nxh4+ $1 {[%emt 0:02:52]} 20. gxh4 {[%emt 0:00:13]} Qxh4 {[%emt 0:00:11]} 21. Bxh7+ {[%emt 0:03:59]} Kh8 {[%emt 0:05:43]} 22. f4 {[%emt 0:00:33]} Qh3+ {[%emt 0:03:24]} ({Not} 22... Qxh7 23. Qxh7+ Kxh7 24. bxc6 $17) 23. Kg1 {[%emt 0:00:38]} Qxh7 $2 {[%emt 0:00:32]} (23... Rxe3 $19 {and Black stays clearly on top.} 24. Bg6 fxg6) 24. Qxh7+ {[%emt 0:00:09]} Kxh7 {[%emt 0:00:10]} 25. bxc6 {[%emt 0:00:07]} bxc6 {[%emt 0:00:33]} 26. Kf2 {[%emt 0:00:36]} Ba6 {[%emt 0:01:56]} (26... Bf5 $142 27. Rc1 Rac8) 27. Rc1 {[%emt 0:01:14]} Bb5 {[%emt 0:01:22]} 28. Nc5 $17 {[%emt 0:00:08]} Bxc5 {[%emt 0:00:57]} 29. dxc5 {[%emt 0:00:53]} Bc4 {[%emt 0:00:31]} 30. Bc3 {[%emt 0:00:15]} f6 1/2-1/2

[Event "CZE-ch U14 2020"]
[Site "Kouty nad Desnou"]
[Date "2020.03.12"]
[Round "7.10"]
[White "Vaclavik, Jan"]
[Black "Mohapl, Tomas"]
[Result "1/2-1/2"]
[ECO "A45"]
[WhiteElo "1791"]
[BlackElo "1654"]
[Annotator "NA RC"]
[PlyCount "105"]
[EventDate "2020.03.07"]
[EventCountry "CZE"]
[SourceTitle "playchess.com"]
[Source "ChessBase"]
[SourceQuality "1"]
[TimeControl "5400+30"]

1. d4 {[%emt 0:00:00]} Nf6 {[%emt 0:00:09]} 2. Bf4 {[%emt 0:00:00]} d5 {[%emt 0:03:29]} 3. e3 {[%emt 0:00:00]} Bf5 {[%emt 0:02:25]} 4. c4 {[%emt 0:00:01]} c6 {[%emt 0:00:34]} 5. Qb3 {[%emt 0:06:07]} Qb6 {[%emt 0:04:03]} 6. Nf3 {[%emt 0:09:09]} Qxb3 {[%emt 0:04:10]} 7. axb3 {[%emt 0:00:02]} Nbd7 {[%emt 0:00:17]} 8. Nc3 {[%emt 0:01:16]} e6 {[%emt 0:02:45]} 9. Be2 {[%emt 0:07:31]} Nh5 {[%emt 0:14:34]} 10. Kd2 {[%emt 0:02:19]} Nxf4 {[%emt 0:02:13]} 11. exf4 {[%emt 0:00:01]} Bd6 {[%emt 0:02:05]} 12. g3 {[%emt 0:00:58]} Nf6 {[%emt 0:16:55]} 13. Ra4 {[%emt 0:07:42]} a6 {[%emt 0:08:38]} 14. c5 {[%emt 0:02:35]} Bc7 {[%emt 0:00:13]} 15. b4 {[%emt 0:00:21]} Ke7 {[%emt 0:01:23]} 16. Re1 {[%emt 0:14:42]} Ng4 {[%emt 0:04:33]} 17. Rf1 {[%emt 0:05:41]} h6 {[%emt 0:02:24]} 18. h4 {[%emt 0:14:52]} Rag8 {[%emt 0:04:09]} 19. Raa1 {[%emt 0:05:33]} f6 {[%emt 0:04:56]} 20. h5 {[%emt 0:02:36]} g5 {[%emt 0:05:50]} 21. hxg6 {[%emt 0:01:34]} Bxg6 {[%emt 0:00:09]} 22. Nh4 {[%emt 0:01:19]} Be8 {[%emt 0:00:20]} 23. f3 {[%emt 0:01:45]} Nh2 {[%emt 0:01:43]} 24. Rg1 {[%emt 0:07:06]} Rxg3 {[%emt 0:01:58]} 25. Ke3 {[%emt 0:03:33]} Ng4+ {[%emt 0:02:13]} 26. Kd3 Bxf4 {[%emt 0:00:29]} 27. Kc2 {[%emt 0:04:48]} Ne3+ 28. Kb3 {[%emt 0:00:18]} Rhg8 {[%emt 0:01:14]} 29. Rge1 {[%emt 0:00:39]} Ng2 {[%emt 0:04:50]} 30. Nxg2 {[%emt 0:00:42]} Rxg2 {[%emt 0:00:04]} 31. Bf1 {[%emt 0:01:46]} Rf2 {[%emt 0:01:56]} 32. b5 {[%emt 0:00:22]} axb5 {[%emt 0:01:09]} 33. Ra7 {[%emt 0:00:19]} Rg1 {[%emt 0:00:39]} 34. Rxb7+ {[%emt 0:00:32]} Kf8 {[%emt 0:01:24]} 35. Rxe6 {[%emt 0:00:10]} Rfxf1 {[%emt 0:00:24]} 36. Rxf6+ {[%emt 0:00:15]} Kg8 {[%emt 0:00:23]} 37. Rxf4 {[%emt 0:00:11]} h5 {[%emt 0:00:40]} 38. Rb8 {[%emt 0:01:39]} Re1 {[%emt 0:00:28]} 39. Rh4 {[%emt 0:00:33]} Kg7 {[%emt 0:00:35]} 40. Rh2 {[%emt 0:00:26]} Bg6 {[%emt 0:01:42]} 41. Rb6 {[%emt 0:00:32]} Be8 {[%emt 0:00:00]} 42. Rb8 {[%emt 0:00:00]} Rg3 {[%emt 0:00:00]} 43. Rf2 {[%emt 0:00:00]} Re3 {[%emt 0:00:00]} 44. Rc8 {[%emt 0:00:00]} h4 {[%emt 0:00:00]} 45. f4 {[%emt 0:00:00]} h3 {[%emt 0:00:00]} 46. f5 {[%emt 0:00:00]} Kf6 {[%emt 0:00:00]} 47. Rd8 {[%emt 0:00:00]} Rg2 {[%emt 0:00:00]} 48. Rd6+ {[%emt 0:00:00]} Kf7 {[%emt 0:00:00]} 49. Rxg2 {[%emt 0:00:00]} hxg2 {[%emt 0:00:00]} 50. Rg6 {[%emt 0:00:00]} Rf3 {[%emt 0:00:00]} 51. Rxg2 {[%emt 0:00:00]} Rxf5 {[%emt 0:00:00]} 52. Kb4 {[%emt 0:00:00]} Rf4 {[%emt 0:00:00]} 53. Rd2 {[%emt 0:00:00]} 1/2-1/2

[Event "CZE-ch U14 2020"]
[Site "Kouty nad Desnou"]
[Date "2020.03.12"]
[Round "7.11"]
[White "Vilimek, Vit"]
[Black "Licka, Denis"]
[Result "0-1"]
[ECO "B20"]
[WhiteElo "1695"]
[BlackElo "1594"]
[Annotator "NA RC"]
[PlyCount "46"]
[EventDate "2020.03.07"]
[EventCountry "CZE"]
[SourceTitle "playchess.com"]
[Source "ChessBase"]
[SourceQuality "1"]
[TimeControl "5400+30"]

1. e4 {[%emt 0:00:00]} c5 {[%emt 0:01:34]} 2. a3 {[%emt 0:00:00]} d5 {[%emt 0:00:13]} 3. exd5 {[%emt 0:00:00]} Nf6 {[%emt 0:00:07]} 4. b4 {[%emt 0:06:08]} cxb4 {[%emt 0:00:05]} 5. Bb2 {[%emt 0:01:45]} Nxd5 {[%emt 0:06:03]} 6. Bc4 {[%emt 0:02:02]} e6 {[%emt 0:00:19]} 7. Nf3 {[%emt 0:00:11]} Nc6 {[%emt 0:40:35]} 8. O-O {[%emt 0:00:44]} Nf6 {[%emt 0:01:19]} 9. axb4 {[%emt 0:02:38]} Bxb4 {[%emt 0:01:01]} 10. c3 {[%emt 0:00:29]} Be7 {[%emt 0:00:44]} 11. d4 {[%emt 0:00:06]} O-O 12. Bd3 {[%emt 0:10:03]} h6 {[%emt 0:05:02]} 13. Re1 {[%emt 0:00:37]} a6 {[%emt 0:01:15]} 14. Qc2 {[%emt 0:00:42]} Nd5 {[%emt 0:00:49]} 15. Kh1 {[%emt 0:06:51]} Qc7 {[%emt 0:08:25]} 16. Rg1 {[%emt 0:02:01]} Nf4 {[%emt 0:02:25]} 17. Nbd2 {[%emt 0:06:41]} Nxd3 {[%emt 0:00:53]} 18. Qxd3 {[%emt 0:00:03]} b5 {[%emt 0:00:58]} 19. Ne4 {[%emt 0:02:28]} Bb7 {[%emt 0:02:01]} 20. g4 {[%emt 0:18:24]} Rfd8 {[%emt 0:01:35]} 21. g5 {[%emt 0:02:15]} hxg5 {[%emt 0:00:35]} 22. Nexg5 {[%emt 0:00:29]} Bxg5 {[%emt 0:00:51]} 23. Nxg5 {[%emt 0:01:04]} Ne5+ {[%emt 0:00:07]} 0-1

[Event "CZE-ch U14 2020"]
[Site "Kouty nad Desnou"]
[Date "2020.03.12"]
[Round "7.12"]
[White "Zednicek, Filip"]
[Black "Kanak, Matyas"]
[Result "0-1"]
[ECO "B22"]
[WhiteElo "1365"]
[BlackElo "1499"]
[Annotator "NA"]
[PlyCount "103"]
[EventDate "2020.03.07"]
[EventCountry "CZE"]
[SourceTitle "playchess.com"]
[Source "ChessBase"]
[SourceQuality "1"]
[TimeControl "5400+30"]

1. e4 {[%emt 0:00:47]} c5 {[%emt 0:00:00]} 2. c3 {[%emt 0:01:15]} d5 {[%emt 0:00:16]} 3. exd5 {[%emt 0:01:44]} Qxd5 {[%emt 0:00:21]} 4. d4 {[%emt 0:03:13]} g6 {[%emt 0:12:47]} 5. Nf3 {[%emt 0:03:41]} Bg7 {[%emt 0:00:41]} 6. Be2 {[%emt 0:02:33]} Nf6 {[%emt 0:14:44]} 7. O-O {[%emt 0:03:27]} O-O {[%emt 0:07:48]} 8. dxc5 {[%emt 0:06:22]} Qxc5 {[%emt 0:02:24]} 9. Be3 {[%emt 0:04:05]} Qc7 {[%emt 0:00:09]} 10. Nbd2 {[%emt 0:04:17]} Nc6 {[%emt 0:10:05]} 11. Bd3 {[%emt 0:13:02]} Rd8 {[%emt 0:06:45]} 12. Qe2 {[%emt 0:01:48]} Nd5 {[%emt 0:14:37]} 13. Rfe1 {[%emt 0:03:31]} a6 {[%emt 0:06:17]} 14. Bc2 {[%emt 0:04:00]} Nxe3 {[%emt 0:01:14]} 15. Qxe3 {[%emt 0:00:29]} b5 {[%emt 0:02:52]} 16. Nb3 {[%emt 0:03:35]} e6 {[%emt 0:02:34]} 17. Rad1 {[%emt 0:03:42]} Bb7 {[%emt 0:02:34]} 18. Nc5 {[%emt 0:01:14]} Rac8 {[%emt 0:00:36]} 19. Bb3 {[%emt 0:05:35]} Na5 {[%emt 0:01:30]} 20. Nxb7 {[%emt 0:00:41]} Qxb7 {[%emt 0:00:45]} 21. Nd2 {[%emt 0:03:46]} Nxb3 {[%emt 0:01:00]} 22. Nxb3 {[%emt 0:01:35]} Qc7 {[%emt 0:00:41]} 23. Nd2 {[%emt 0:05:27]} Rd5 {[%emt 0:03:46]} 24. Ne4 {[%emt 0:04:41]} Rcd8 {[%emt 0:00:28]} 25. Rxd5 {[%emt 0:02:28]} Rxd5 {[%emt 0:00:11]} 26. f4 {[%emt 0:00:14]} Rf5 {[%emt 0:01:58]} 27. g3 {[%emt 0:00:24]} Rd5 {[%emt 0:00:19]} 28. Ng5 {[%emt 0:00:11]} Rd6 {[%emt 0:01:15]} 29. Nf3 {[%emt 0:01:25]} Qd7 {[%emt 0:00:21]} 30. Re2 {[%emt 0:00:47]} Rd3 {[%emt 0:00:15]} 31. Qf2 {[%emt 0:00:15]} Qd5 {[%emt 0:01:33]} 32. Ne1 {[%emt 0:00:24]} Rd1 {[%emt 0:00:16]} 33. a3 {[%emt 0:00:25]} Bf8 {[%emt 0:00:20]} 34. Qg2 {[%emt 0:00:56]} Bc5+ {[%emt 0:00:08]} 35. Kf1 {[%emt 0:00:16]} Qd6 {[%emt 0:02:30]} 36. Qe4 {[%emt 0:00:42]} Qd7 {[%emt 0:01:37]} 37. Qe5 {[%emt 0:00:45]} Ba7 {[%emt 0:00:09]} 38. Kg2 {[%emt 0:01:10]} Rd5 {[%emt 0:01:54]} 39. Qe4 {[%emt 0:00:14]} Qb7 {[%emt 0:00:28]} 40. Nf3 {[%emt 0:00:07]} Qd7 {[%emt 0:01:07]} 41. Ne5 {[%emt 0:00:06]} Qd6 {[%emt 0:00:44]} 42. Ng4 {[%emt 0:00:42]} Qd8 43. Nh6+ {[%emt 0:03:08]} Kg7 {[%emt 0:00:37]} 44. Ng4 {[%emt 0:00:04]} Qa8 {[%emt 0:00:00]} 45. Ne5 {[%emt 0:00:00]} Qc8 {[%emt 0:00:00]} 46. Nd3 {[%emt 0:00:00]} Bc5 {[%emt 0:00:00]} 47. c4 {[%emt 0:00:00]} bxc4 {[%emt 0:00:00]} 48. Qxc4 {[%emt 0:00:00]} Qb7 {[%emt 0:00:00]} 49. Kf1 {[%emt 0:00:00]} Rxd3 {[%emt 0:00:00]} 50. Qxc5 {[%emt 0:00:00]} Qh1+ {[%emt 0:00:00]} 51. Qg1 {[%emt 0:00:00]} Rd1+ {[%emt 0:00:00]} 52. Re1 {[%emt 0:00:00]} 0-1